fUSD/lending_fUSD_20251013
["ID","MTS","AMOUNT","RATE_DAILY","PERIOD"]
[391098147,1760338256444,-216.630891,0.00014238,2]
[391098148,1760338256454,-216.630891,0.00014238,2]
[391098149,1760338256463,-216.630891,0.00014238,2]
[391098150,1760338256472,-216.630891,0.00014238,2]
[391098151,1760338256481,-216.630891,0.00014238,2]
[391098152,1760338256491,-216.630883,0.00014238,2]
[391098153,1760338256501,-151.0,0.00014238,2]
[391098154,1760338256510,-151.0,0.00014238,2]
[391098155,1760338256519,-151.0,0.00014238,2]
[391098156,1760338256529,-151.0,0.00014238,2]
[391098157,1760338256538,-151.0,0.00014238,2]
[391098158,1760338256548,-151.0,0.00014238,2]
[391098159,1760338256557,-151.0,0.00014238,2]
[391098160,1760338256566,-151.0,0.00014238,2]
[391098161,1760338256575,-151.0,0.00014238,2]
[391098162,1760338256585,-151.0,0.00014238,2]
[391098163,1760338256595,-151.0,0.00014238,2]
[391098164,1760338256618,-151.0,0.00014238,2]
[391098165,1760338256651,-151.0,0.00014238,2]
[391098166,1760338256674,-151.0,0.00014238,2]
[391098167,1760338256693,-151.0,0.00014238,2]
[391098168,1760338256714,-151.0,0.00014238,2]
[391098169,1760338256731,-151.0,0.00014238,2]
[391098170,1760338256749,-151.0,0.00014238,2]
[391098171,1760338256769,-261.97613366,0.00014238,2]
[391098172,1760338256788,-2767.969094,0.00014238,2]
[391098173,1760338256805,-2767.969094,0.00014238,2]
[391098174,1760338256823,-2767.969094,0.00014238,2]
[391098175,1760338256839,-2767.969094,0.00014238,2]
[391098176,1760338256858,-2767.969094,0.00014238,2]
[391098177,1760338256879,-2767.969094,0.00014238,2]
[391098178,1760338256891,-2767.969094,0.00014238,2]
[391098179,1760338256911,-2767.969094,0.00014238,2]
[391098180,1760338256923,-2767.969094,0.00014238,2]
[391098181,1760338256936,-2767.969094,0.00014238,2]
[391098182,1760338256954,-2767.969094,0.00014238,2]
[391098183,1760338256965,-1626.311498,0.00014238,2]
[391098184,1760338256981,-2767.969094,0.00014238,2]
[391098185,1760338256999,-1626.311498,0.00014238,2]
[391098186,1760338257015,-2767.969094,0.00014238,2]
[391098187,1760338257033,-1626.311498,0.00014238,2]
[391098188,1760338257050,-2767.969094,0.00014238,2]
[391098189,1760338257067,-1626.311498,0.00014238,2]
[391098190,1760338257083,-2767.969094,0.00014238,2]
[391098191,1760338257099,-1626.311498,0.00014238,2]
[391098192,1760338257114,-2767.969094,0.00014238,2]
[391098193,1760338257130,-1626.311498,0.00014238,2]
[391098194,1760338257146,-2767.969094,0.00014238,2]
[391098195,1760338257161,-1626.311498,0.00014238,2]
[391098196,1760338257176,-2767.969094,0.00014238,2]
[391098197,1760338257191,-1626.311498,0.00014238,2]
[391098198,1760338257207,-2767.969094,0.00014238,2]
[391098199,1760338257222,-1626.311498,0.00014238,2]
[391098200,1760338257244,-2767.969089,0.00014238,2]
[391098201,1760338257259,-1626.311498,0.00014238,2]
[391098202,1760338257274,-1626.311498,0.00014238,2]
[391098203,1760338257289,-1626.311498,0.00014238,2]
[391098204,1760338257303,-1626.311498,0.00014238,2]
[391098205,1760338257317,-1626.311498,0.00014238,2]
[391098206,1760338257332,-440.56617,0.00014238,2]
[391098207,1760338257346,-1626.311498,0.00014238,2]
[391098208,1760338257361,-440.56617,0.00014238,2]
[391098209,1760338257376,-1626.311498,0.00014238,2]
[391098210,1760338257390,-440.56617,0.00014238,2]
[391098211,1760338257404,-1626.311498,0.00014238,2]
[391098212,1760338257418,-440.56617,0.00014238,2]
[391098213,1760338257432,-1626.311498,0.00014238,2]
[391098214,1760338257447,-440.56617,0.00014238,2]
[391098215,1760338257460,-1385.817125,0.00014238,2]
[391098216,1760338257474,-1626.311498,0.00014238,2]
[391098217,1760338257489,-440.56617,0.00014238,2]
[391098218,1760338257503,-1385.817125,0.00014238,2]
[391098219,1760338257517,-1626.311495,0.00014238,2]
[391098220,1760338257531,-1385.817125,0.00014238,2]
[391098221,1760338257545,-440.56617,0.00014238,2]
[391098222,1760338257559,-1385.817125,0.00014238,2]
[391098223,1760338257573,-440.56617,0.00014238,2]
[391098224,1760338257587,-1385.817125,0.00014238,2]
[391098225,1760338257603,-440.56617,0.00014238,2]
[391098226,1760338257617,-440.56617,0.00014238,2]
[391098227,1760338257632,-1385.817125,0.00014238,2]
[391098228,1760338257647,-151.0,0.00014238,2]
[391098229,1760338257661,-440.56617,0.00014238,2]
[391098230,1760338257676,-151.0,0.00014238,2]
[391098231,1760338257691,-440.56617,0.00014238,2]
[391098232,1760338257708,-1385.817125,0.00014238,2]
[391098233,1760338257723,-151.0,0.00014238,2]
[391098234,1760338257738,-440.56617,0.00014238,2]
[391098235,1760338257753,-1385.817125,0.00014238,2]
[391098236,1760338257768,-440.56617,0.00014238,2]
[391098237,1760338257782,-1385.817125,0.00014238,2]
[391098238,1760338257798,-440.56617,0.00014238,2]
[391098239,1760338257813,-1385.817125,0.00014238,2]
[391098240,1760338257828,-440.56617,0.00014238,2]
[391098241,1760338257842,-1385.817125,0.00014238,2]
[391098242,1760338257856,-440.56617,0.00014238,2]
[391098243,1760338257870,-1385.817125,0.00014238,2]
[391098244,1760338257884,-440.56617,0.00014238,2]
[391098245,1760338257899,-1385.817125,0.00014238,2]
[391098246,1760338257914,-1385.817125,0.00014238,2]
[391098247,1760338257930,-440.56617,0.00014238,2]
[391098248,1760338257945,-1385.817125,0.00014238,2]
[391098249,1760338257960,-440.566164,0.00014238,2]
[391098250,1760338257974,-5400.0,0.00014238,2]
[391098251,1760338257988,-1385.817125,0.00014238,2]
[391098252,1760338258002,-5400.0,0.00014238,2]
[391098253,1760338258018,-1385.817125,0.00014238,2]
[391098254,1760338258032,-5400.0,0.00014238,2]
[391098255,1760338258046,-1385.817125,0.00014238,2]
[391098256,1760338258061,-1385.817125,0.00014238,2]
[391098257,1760338258074,-1385.817124,0.00014238,2]
[391098258,1760338258089,-5400.0,0.00014238,2]
[391098259,1760338258102,-5400.0,0.00014238,2]
[391098260,1760338258116,-5400.0,0.00014238,2]
[391098261,1760338258130,-151.0,0.00014238,2]
[391098262,1760338258144,-151.0,0.00014238,2]
[391098263,1760338258159,-151.0,0.00014238,2]
[391098264,1760338258173,-5400.0,0.00014238,2]
[391098265,1760338258187,-151.0,0.00014238,2]
[391098266,1760338258201,-5400.0,0.00014238,2]
[391098267,1760338258216,-151.0,0.00014238,2]
[391098268,1760338258229,-5400.0,0.00014238,2]
[391098269,1760338258242,-151.0,0.00014238,2]
[391098270,1760338258257,-151.0,0.00014238,2]
[391098271,1760338258273,-151.0,0.00014238,2]
[391098272,1760338258288,-151.0,0.00014238,2]
[391098273,1760338258303,-151.0,0.00014238,2]
[391098274,1760338258317,-5400.0,0.00014238,2]
[391098275,1760338258331,-151.0,0.00014238,2]
[391098276,1760338258347,-151.0,0.00014238,2]
[391098277,1760338258360,-5400.0,0.00014238,2]
[391098278,1760338258375,-151.0,0.00014238,2]
[391098279,1760338258388,-151.0,0.00014238,2]
[391098280,1760338258403,-5400.0,0.00014238,2]
[391098281,1760338258416,-151.0,0.00014238,2]
[391098282,1760338258430,-239.618751,0.00014238,2]
[391098283,1760338258444,-151.0,0.00014238,2]
[391098284,1760338258465,-237.396716,0.00014238,2]
[391098285,1760338258480,-151.0,0.00014238,2]
[391098286,1760338258496,-418.691018,0.00014238,2]
[391098287,1760338258510,-151.0,0.00014238,2]
[391098288,1760338258526,-237.396716,0.00014238,2]
[391098289,1760338258542,-418.691018,0.00014238,2]
[391098290,1760338258557,-237.396716,0.00014238,2]
[391098291,1760338258571,-418.691018,0.00014238,2]
[391098292,1760338258586,-151.0,0.00014238,2]
[391098293,1760338258603,-298.728562,0.00014238,2]
[391098294,1760338258617,-151.0,0.00014238,2]
[391098295,1760338258630,-151.0,0.00014238,2]
[391098296,1760338258647,-237.396716,0.00014238,2]
[391098297,1760338258660,-418.691018,0.00014238,2]
[391098298,1760338258676,-151.0,0.00014238,2]
[391098299,1760338258691,-237.396716,0.00014238,2]
[391098300,1760338258706,-418.691018,0.00014238,2]
[391098301,1760338258721,-151.0,0.00014238,2]
[391098302,1760338258736,-237.396716,0.00014238,2]
[391098303,1760338258751,-418.691018,0.00014238,2]
[391098304,1760338258766,-151.0,0.00014238,2]
[391098305,1760338258782,-151.0,0.00014238,2]
[391098306,1760338258796,-252.259131,0.00014238,2]
[391098307,1760338258811,-151.0,0.00014238,2]
[391098308,1760338258827,-237.396716,0.00014238,2]
[391098309,1760338258841,-151.0,0.00014238,2]
[391098310,1760338258856,-252.259131,0.00014238,2]
[391098311,1760338258870,-418.691018,0.00014238,2]
[391098312,1760338258887,-151.0,0.00014238,2]
[391098313,1760338259232,-151.0,0.00014238,2]
[391098314,1760338259270,-252.259131,0.00014238,2]
[391098315,1760338259292,-237.396716,0.00014238,2]
[391098316,1760338259302,-418.691018,0.00014238,2]
[391098317,1760338259314,-151.0,0.00014238,2]
[391098318,1760338259324,-151.0,0.00014238,2]
[391098319,1760338259333,-151.0,0.00014238,2]
[391098320,1760338259344,-237.396716,0.00014238,2]
[391098321,1760338259353,-151.0,0.00014238,2]
[391098322,1760338259364,-155.609949,0.00014238,2]
[391098323,1760338259374,-281.778013,0.00014238,2]
[391098324,1760338259384,-418.691018,0.00014238,2]
[391098325,1760338259393,-252.259131,0.00014238,2]
[391098326,1760338259402,-252.259131,0.00014238,2]
[391098327,1760338259411,-168.517429,0.00014238,2]
[391098328,1760338259420,-237.396716,0.00014238,2]
[391098329,1760338259429,-252.259131,0.00014238,2]
[391098330,1760338259439,-151.0,0.00014238,2]
[391098331,1760338259448,-168.517429,0.00014238,2]
[391098332,1760338259457,-237.396716,0.00014238,2]
[391098333,1760338259466,-418.691018,0.00014238,2]
[391098334,1760338259475,-252.259131,0.00014238,2]
[391098335,1760338259484,-168.517429,0.00014238,2]
[391098336,1760338259494,-418.691018,0.00014238,2]
[391098337,1760338259503,-237.396723,0.00014238,2]
[391098338,1760338259512,-252.259131,0.00014238,2]
[391098339,1760338259521,-151.0,0.00014238,2]
[391098340,1760338259531,-418.691016,0.00014238,2]
[391098341,1760338259540,-252.259131,0.00014238,2]
[391098342,1760338259550,-151.0,0.00014238,2]
[391098343,1760338259559,-252.259131,0.00014238,2]
[391098344,1760338259569,-168.517429,0.00014238,2]
[391098345,1760338259579,-217.700652,0.00014238,2]
[391098346,1760338259588,-252.259131,0.00014238,2]
[391098347,1760338259598,-168.517429,0.00014238,2]
[391098348,1760338259610,-151.0,0.00014238,2]
[391098349,1760338259620,-217.700652,0.00014238,2]
[391098350,1760338259629,-252.259131,0.00014238,2]
[391098351,1760338259638,-168.517429,0.00014238,2]
[391098352,1760338259648,-151.0,0.00014238,2]
[391098353,1760338259657,-217.700652,0.00014238,2]
[391098354,1760338259667,-252.259131,0.00014238,2]
[391098355,1760338259677,-184.225865,0.00014238,2]
[391098356,1760338259687,-151.0,0.00014238,2]
[391098357,1760338259696,-252.259131,0.00014238,2]
[391098358,1760338259706,-184.225865,0.00014238,2]
[391098359,1760338259715,-252.259131,0.00014238,2]
[391098360,1760338259724,-168.517429,0.00014238,2]
[391098361,1760338259733,-184.225865,0.00014238,2]
[391098362,1760338259743,-252.259131,0.00014238,2]
[391098363,1760338259752,-168.517429,0.00014238,2]
[391098364,1760338259761,-217.700652,0.00014238,2]
[391098365,1760338259771,-252.259131,0.00014238,2]
[391098366,1760338259780,-168.517429,0.00014238,2]
[391098367,1760338259790,-217.700652,0.00014238,2]
[391098368,1760338259800,-252.259131,0.00014238,2]
[391098369,1760338259809,-184.225865,0.00014238,2]
[391098370,1760338259819,-217.700652,0.00014238,2]
[391098371,1760338259829,-252.259131,0.00014238,2]
[391098372,1760338259839,-184.225865,0.00014238,2]
[391098373,1760338259848,-168.517429,0.00014238,2]
[391098374,1760338259858,-252.25913,0.00014238,2]
[391098375,1760338259868,-184.225865,0.00014238,2]
[391098376,1760338259877,-168.517429,0.00014238,2]
[391098377,1760338259886,-217.700652,0.00014238,2]
[391098378,1760338259895,-168.517436,0.00014238,2]
[391098379,1760338259905,-173.13974789,0.00014238,2]
[391098380,1760338260630,-44.56090411,0.00014238,2]
[391098381,1760338260641,-184.225865,0.00014238,2]
[391098382,1760338260650,-184.225865,0.00014238,2]
[391098383,1760338260659,-217.700652,0.00014238,2]
[391098384,1760338260669,-184.225865,0.00014238,2]
[391098385,1760338260682,-217.700652,0.00014238,2]
[391098386,1760338260691,-217.700652,0.00014238,2]
[391098387,1760338260700,-184.225865,0.00014238,2]
[391098388,1760338260709,-217.700645,0.00014238,2]
[391098389,1760338260719,-184.225865,0.00014238,2]
[391098390,1760338260728,-184.225871,0.00014238,2]
[391098391,1760338260737,-151.0,0.00014238,2]
[391098392,1760338260746,-151.0,0.00014238,2]
[391098393,1760338260756,-348.594619,0.00014238,2]
[391098394,1760338260765,-348.594619,0.00014238,2]
[391098395,1760338260774,-348.594619,0.00014238,2]
[391098396,1760338260783,-348.594619,0.00014238,2]
[391098397,1760338260793,-348.594619,0.00014238,2]
[391098398,1760338260802,-84.55605635,0.00014238,2]
[391098399,1760338261158,-151.0,0.00014146,2]
[391098400,1760338261168,-627.330465,0.00014146,2]
[391098401,1760338261178,-2855.73914246,0.00014146,2]
[391098402,1760338261189,-3437.22082754,0.00014146,2]
[391098403,1760338261199,-151.0,0.00014146,2]
[391098404,1760338261208,-627.330465,0.00014148,2]
[391098405,1760338261218,-6292.95997,0.00014148,2]
[391098406,1760338261228,-151.0,0.00014148,2]
[391098407,1760338261237,-151.0,0.00014148,2]
[391098408,1760338261247,-627.330465,0.00014148,2]
[391098409,1760338261256,-627.330465,0.00014148,2]
[391098410,1760338261265,-6292.95997,0.00014148,2]
[391098411,1760338261551,-627.330465,0.00014148,2]
[391098412,1760338261560,-6292.95997,0.00014148,2]
[391098413,1760338261569,-6292.95997,0.00014148,2]
[391098414,1760338261579,-226.615605,0.00014148,2]
[391098415,1760338261588,-151.0,0.00014172,2]
[391098416,1760338261598,-627.330465,0.00014172,2]
[391098417,1760338261608,-6292.95997,0.00014172,2]
[391098418,1760338261618,-627.330467,0.00014172,2]
[391098419,1760338261627,-6292.95998,0.00014172,2]
[391098420,1760338261636,-264.03856265,0.00014238,2]
[391098421,1760338261646,-348.594619,0.00014238,2]
[391098422,1760338261655,-348.594619,0.00014238,2]
[391098423,1760338261664,-348.594619,0.00014238,2]
[391098424,1760338261674,-348.594619,0.00014238,2]
[391098425,1760338261684,-348.594619,0.00014238,2]
[391098426,1760338261693,-363.02009,0.00014238,2]
[391098427,1760338261702,-348.594619,0.00014238,2]
[391098428,1760338261711,-349.23399408,0.00014238,2]
[391098429,1760338261723,-13.78609592,0.00014238,2]
[391098430,1760338261733,-348.594619,0.00014238,2]
[391098431,1760338261742,-348.594619,0.00014238,2]
[391098432,1760338261752,-363.02009,0.00014238,2]
[391098433,1760338261761,-348.594619,0.00014238,2]
[391098434,1760338261771,-348.594619,0.00014238,2]
[391098435,1760338261780,-2.21530808,0.00014238,2]
[391098436,1760338261795,-346.37931092,0.00014238,2]
[391098437,1760338261805,-363.02009,0.00014238,2]
[391098438,1760338261815,-348.594619,0.00014238,2]
[391098439,1760338261824,-363.02009,0.00014238,2]
[391098440,1760338261834,-348.594619,0.00014238,2]
[391098441,1760338261843,-363.02009,0.00014238,2]
[391098442,1760338261853,-348.594613,0.00014238,2]
[391098443,1760338261862,-363.02009,0.00014238,2]
[391098444,1760338261871,-363.02009,0.00014238,2]
[391098445,1760338261881,-363.02009,0.00014238,2]
[391098446,1760338261890,-151.0,0.00014238,2]
[391098447,1760338261899,-151.0,0.00014238,2]
[391098448,1760338261908,-363.02009,0.00014238,2]
[391098449,1760338261918,-151.0,0.00014238,2]
[391098450,1760338261926,-363.02009,0.00014238,2]
[391098451,1760338261935,-151.0,0.00014238,2]
[391098452,1760338261945,-151.0,0.00014238,2]
[391098453,1760338261954,-363.02008,0.00014238,2]
[391098454,1760338261963,-151.0,0.00014238,2]
[391098455,1760338261972,-151.0,0.00014238,2]
[391098456,1760338261982,-151.0,0.00014238,2]
[391098457,1760338261991,-157.4432,0.00014238,2]
[391098458,1760338262000,-336.340065,0.00014238,2]
[391098459,1760338262009,-336.340065,0.00014238,2]
[391098460,1760338262018,-336.340065,0.00014238,2]
[391098461,1760338262028,-336.340065,0.00014238,2]
[391098462,1760338262038,-119.18510176,0.00014238,2]
[391098463,1760338262053,-217.15496324,0.00014238,2]
[391098464,1760338262062,-285.27565489,0.00014238,2]
[391098465,1760338276321,-201.08234772,0.00013086,2]
[391098466,1760339237429,-298.91765228,0.00013086,2]
[391098467,1760339237451,-201.08234772,0.00013124,2]
[391098468,1760339239042,-178.19413348,0.00013124,2]
[391098469,1760339241961,-323.00998445,0.00013124,2]
[391098470,1760339244174,-378.91989744,0.00013124,2]
[391098471,1760339247370,-627.84053591,0.00013124,2]
[391098472,1760339297655,-290.953101,0.00013124,2]
[391098473,1760339297676,-18.88972532,0.00013162,2]
[391098474,1760339401319,-228.36034156,0.00013086,2]
[391098475,1760339404177,-250.0,0.00013086,2]
[391098476,1760339407780,-21.63965844,0.00013086,2]
[391098477,1760339407803,-228.36034156,0.00013124,2]
[391098478,1760339407824,-100.61034535,0.00013162,2]
[391098481,1760339431647,-183.5548721,0.000131,2]
[391098484,1760339431796,-1342.6289006,0.000131,2]
[391098485,1760339431806,-30.49992933,0.00013162,2]
[391098486,1760339431816,-1305.26499614,0.00013214,2]
[391098487,1760339431827,-561.92260041,0.00013214,2]
[391098488,1760339431851,-420.26169723,0.00013214,2]
[391098489,1760339431863,-281.175,0.00013214,2]
[391098490,1760339431874,-182.37570622,0.00013214,2]
[391098491,1760339431886,-2111.15,0.00013295,2]
[391098492,1760339431897,-594.77,0.00013313,2]
[391098493,1760339431908,-184.86,0.00013794,2]
[391098494,1760339431919,-783.1111062,0.00013931,2]
[391098495,1760339431928,-300.0,0.00013999,2]
[391098496,1760339431939,-1200.0,0.00013999,2]
[391098497,1760339431948,-300.0,0.00013999,2]
[391098498,1760339431959,-1605.0,0.00014,2]
[391098499,1760339431969,-351.74,0.00014,2]
[391098500,1760339431979,-546.38,0.00014,2]
[391098501,1760339431988,-177.73,0.00014,2]
[391098502,1760339431998,-961.7145841,0.00014037,2]
[391098503,1760339432007,-574.92473347,0.00014092,2]
[391098504,1760339432017,-5802.79066852,0.00014092,2]
[391098505,1760339432029,-250.0,0.00014092,2]
[391098506,1760339432044,-3158.55732133,0.00014092,2]
[391098507,1760339432054,-150.0,0.00014099,2]
[391098508,1760339432064,-2000.0,0.000141,2]
[391098509,1760339432074,-2000.0,0.000141,2]
[391098510,1760339432084,-2000.0,0.000141,2]
[391098511,1760339432094,-2000.0,0.000141,2]
[391098512,1760339432104,-2000.0,0.000141,2]
[391098513,1760339432114,-175.87,0.000141,2]
[391098514,1760339432124,-474.23,0.000141,2]
[391098515,1760339432134,-4906.54363728,0.00014102,2]
[391098516,1760339432143,-3942.3374244,0.00014102,2]
[391098517,1760339432153,-1000.0,0.00014109,2]
[391098518,1760339432162,-928.0,0.0001411,2]
[391098520,1760339432172,-177.63351207,0.0001413,2]
[391098522,1760339432182,-1000.0,0.00014135,2]
[391098524,1760339432192,-1000.0,0.00014135,2]
[391098526,1760339432202,-396.06869422,0.00014135,2]
[391098528,1760339432216,-603.93130578,0.00014135,2]
[391098530,1760339432225,-1000.0,0.00014135,2]
[391098532,1760339432235,-1000.0,0.00014135,2]
[391098534,1760339432244,-1000.0,0.00014135,2]
[391098536,1760339432257,-1000.0,0.00014135,2]
[391098538,1760339432266,-1000.0,0.00014135,2]
[391098540,1760339432276,-1000.0,0.00014135,2]
[391098542,1760339432286,-1000.0,0.00014135,2]
[391098544,1760339432295,-1000.0,0.00014137,2]
[391098546,1760339432305,-200.0,0.0001414,2]
[391098548,1760339432315,-151.0,0.0001414,2]
[391098550,1760339432324,-3942.33742435,0.00014144,2]
[391098552,1760339432333,-2002.1577,0.00014146,2]
[391098554,1760339432343,-9552.16786547,0.00014147,2]
[391098556,1760339432352,-150.0,0.00014148,2]
[391098558,1760339432362,-150.93202387,0.00014148,2]
[391098560,1760339432371,-150.0,0.00014148,2]
[391098562,1760339432380,-150.0,0.00014148,2]
[391098564,1760339432389,-500.0,0.00014148,2]
[391098566,1760339432398,-500.0,0.00014148,2]
[391098568,1760339432407,-500.0,0.00014148,2]
[391098570,1760339432417,-150.0,0.00014148,2]
[391098572,1760339432426,-299.24161565,0.00014148,2]
[391098574,1760339432435,-500.0,0.00014148,2]
[391098576,1760339432444,-500.0,0.00014148,2]
[391098578,1760339432453,-500.0,0.00014148,2]
[391098580,1760339432464,-150.0,0.00014148,2]
[391098582,1760339432473,-150.0,0.00014148,2]
[391098584,1760339432482,-150.0,0.00014148,2]
[391098586,1760339432491,-150.0,0.00014148,2]
[391098588,1760339432500,-500.0,0.00014148,2]
[391098590,1760339432509,-150.0,0.00014148,2]
[391098592,1760339432519,-500.0,0.00014148,2]
[391098594,1760339432528,-150.0,0.00014148,2]
[391098596,1760339432538,-150.0,0.00014148,2]
[391098598,1760339432547,-150.0,0.00014148,2]
[391098600,1760339432555,-153.45502909,0.00014148,2]
[391098602,1760339432565,-300.0,0.00014148,2]
[391098604,1760339432574,-200.0,0.00014148,2]
[391098606,1760339432583,-150.0,0.00014148,2]
[391098608,1760339432593,-500.0,0.00014148,2]
[391098610,1760339432602,-500.0,0.00014148,2]
[391098612,1760339432611,-500.0,0.00014148,2]
[391098614,1760339432620,-150.0,0.00014148,2]
[391098616,1760339432631,-150.0,0.00014148,2]
[391098618,1760339432640,-500.0,0.00014148,2]
[391098620,1760339432649,-500.0,0.00014148,2]
[391098621,1760339432658,-150.0,0.00014148,2]
[391098622,1760339432667,-500.0,0.00014148,2]
[391098623,1760339432676,-500.0,0.00014148,2]
[391098624,1760339432686,-150.0,0.00014148,2]
[391098625,1760339432696,-500.0,0.00014148,2]
[391098626,1760339432705,-500.0,0.00014148,2]
[391098627,1760339432716,-3129.74575509,0.0001415,2]
[391098628,1760339432725,-961.2461,0.00014193,2]
[391098629,1760339432734,-784.2591,0.00014193,2]
[391098630,1760339432743,-599.96129991,0.00014194,2]
[391098631,1760339432752,-500.0,0.00014194,2]
[391098632,1760339432762,-277.11683595,0.00014194,2]
[391098633,1760339432771,-323.00998445,0.00014194,2]
[391098634,1760339432780,-500.0,0.00014194,2]
[391098635,1760339432789,-407.83773088,0.00014194,2]
[391098636,1760339432799,-52375.0801015,0.00014195,2]
[391098637,1760339432807,-47091.024222,0.00014195,2]
[391098638,1760339432816,-9905.5980765,0.00014202,2]
[391098639,1760339432826,-150.47939638,0.00014203,2]
[391098640,1760339432835,-151.23550497,0.00014203,2]
[391098641,1760339432844,-150.0,0.00014203,2]
[391098642,1760339432853,-500.0,0.00014203,2]
[391098643,1760339432862,-500.0,0.00014203,2]
[391098644,1760339432872,-500.0,0.00014203,2]
[391098645,1760339432881,-150.0,0.00014203,2]
[391098646,1760339432893,-500.0,0.00014203,2]
[391098647,1760339432903,-500.0,0.00014203,2]
[391098648,1760339432912,-500.0,0.00014203,2]
[391098649,1760339432921,-150.55891648,0.00014203,2]
[391098650,1760339432931,-243.98829258,0.00014203,2]
[391098651,1760339432940,-150.0,0.00014203,2]
[391098652,1760339432949,-150.0,0.00014203,2]
[391098653,1760339432959,-500.0,0.00014203,2]
[391098654,1760339432968,-500.0,0.00014203,2]
[391098655,1760339432977,-150.57262808,0.00014203,2]
[391098656,1760339432986,-150.0,0.00014203,2]
[391098657,1760339432995,-300.0,0.00014203,2]
[391098658,1760339433004,-150.0,0.00014203,2]
[391098659,1760339433014,-500.0,0.00014203,2]
[391098660,1760339433023,-647.8159196,0.00014203,2]
[391098661,1760339433032,-500.0,0.00014203,2]
[391098662,1760339433041,-150.0,0.00014203,2]
[391098663,1760339433051,-150.0,0.00014203,2]
[391098664,1760339433059,-500.0,0.00014203,2]
[391098665,1760339433069,-500.0,0.00014203,2]
[391098666,1760339433078,-500.0,0.00014203,2]
[391098667,1760339433087,-500.0,0.00014203,2]
[391098668,1760339433096,-500.0,0.00014203,2]
[391098669,1760339433104,-928.0,0.00014217,2]
[391098670,1760339433114,-928.0,0.00014222,2]
[391098671,1760339433123,-500.0,0.00014224,2]
[391098672,1760339433133,-928.0,0.00014225,2]
[391098673,1760339433142,-28932.52743942,0.0001423,2]
[391098674,1760339433154,-27740.95049378,0.0001423,2]
[391098675,1760339433165,-34566.7491237,0.0001423,2]
[391098676,1760339433183,-2475.883476,0.0001423,2]
[391098677,1760339433194,-31735.7885671,0.0001423,2]
[391098678,1760339433204,-159.78788652,0.0001423,2]
[391098679,1760339433215,-151.0,0.0001423,2]
[391098680,1760339433225,-151.0,0.0001423,2]
[391098681,1760339433234,-151.0,0.0001423,2]
[391098682,1760339433244,-151.0,0.0001423,2]
[391098683,1760339433253,-151.0,0.0001423,2]
[391098684,1760339433263,-151.0,0.0001423,2]
[391098685,1760339433272,-200.0,0.00014238,2]
[391098686,1760339433282,-795.05,0.00014238,2]
[391098687,1760339433291,-200.0,0.00014238,2]
[391098688,1760339433300,-151.0,0.00014238,2]
[391098689,1760339433309,-1379.78177144,0.00014238,2]
[391098690,1760339433321,-874.67,0.00014238,2]
[391098698,1760339437727,-1486.41526439,0.00014186,2]
[391098699,1760339437772,-1000.0,0.00014186,2]
[391098700,1760339438016,-461.11654667,0.00014186,2]
[391098701,1760339438027,-994.80561329,0.00014186,2]
[391098702,1760339438037,-151.0,0.0001423,2]
[391098703,1760339438046,-152.926867,0.0001423,2]
[391098704,1760339438057,-307.417531,0.0001423,2]
[391098705,1760339438067,-151.0,0.0001423,2]
[391098706,1760339438076,-151.0,0.0001423,2]
[391098707,1760339438086,-307.417531,0.0001423,2]
[391098708,1760339438096,-307.417531,0.0001423,2]